[Event "Czech Juniors Girls 2024"]
[Site "Jaromerice nad Rokytnou"]
[Date "2024.03.16"]
[Round "9.3"]
[White "Zelbova, Lada"]
[Black "Markina, Sofiia"]
[Result "1-0"]
[ECO "D35"]
[WhiteElo "1954"]
[BlackElo "1857"]
[Annotator "NA RC"]
[PlyCount "75"]
[EventDate "2024.03.10"]
[EventType "tourn"]
[EventCountry "CZE"]
[SourceTitle "playchess.com"]
[Source "ChessBase"]
[SourceQuality "1"]
[TimeControl "40/5400+30:1800+30"]

1. d4 {[%emt 0:00:03]} d5 {[%emt 0:00:03]} 2. c4 {[%emt 0:00:20]} e6 {[%emt 0:00:05]} 3. Nc3 {[%emt 0:00:08]} Be7 {[%emt 0:00:04]} 4. Nf3 {[%emt 0:00:39]} Nf6 {[%emt 0:00:21]} 5. cxd5 {[%emt 0:01:33]} exd5 {[%emt 0:00:49]} 6. Bg5 {[%emt 0:01:06]} O-O {[%emt 0:01:20]} 7. e3 {[%emt 0:00:18]} Bf5 {[%emt 0:02:18]} 8. Bd3 {[%emt 0:01:36]} Bxd3 {[%emt 0:01:26]} 9. Qxd3 {[%emt 0:00:09]} c6 {[%emt 0:02:25]} 10. O-O {[%emt 0:01:38]} Nbd7 {[%emt 0:02:09]} 11. Ne5 {[%emt 0:03:00] D35: Queen's Gambit Declined: Exchange Variation.} Nxe5 {[%emt 0:06:14]} 12. dxe5 {[%emt 0:00:21]} Nd7 {[%emt 0:03:55]} 13. Bf4 {[%emt 0:09:39]} f6 {[%emt 0:03:06]} 14. exf6 {[%emt 0:01:23]} Nxf6 {[%emt 0:00:56]} 15. Rab1 {[%emt 0:02:18]} Bd6 {[%emt 0:07:39]} 16. Bxd6 {[%emt 0:03:45]} Qxd6 {[%emt 0:00:08]} 17. h3 {[%emt 0:03:00]} Rad8 {[%emt 0:01:37]} 18. b4 {[%emt 0:02:13]} Rf7 {[%emt 0:16:45]} 19. Qd4 {[%emt 0:03:38]} a6 {[%emt 0:09:23]} 20. Rfd1 {[%emt 0:12:58]} Rfd7 {[%emt 0:04:15]} 21. Rb2 {[%emt 0:00:35]} Qe6 {[%emt 0:03:58]} 22. Na4 {[%emt 0:12:15]} Qf7 {[%emt 0:02:58]} 23. Nc5 {[%emt 0:02:00]} Rd6 {[%emt 0:00:11]} 24. a4 {[%emt 0:01:40]} Ne4 $18 {[%emt 0:03:54]} 25. a5 {[%emt 0:04:06]} h6 {[%emt 0:08:24]} 26. Nxe4 {[%emt 0:05:02]} dxe4 {[%emt 0:00:06]} 27. Qxd6 {[%emt 0:00:29]} Rxd6 {[%emt 0:00:04]} 28. Rxd6 {[%emt 0:00:15]} Qc4 {[%emt 0:01:32]} 29. Rdd2 {[%emt 0:00:54]} Kh7 {[%emt 0:00:45]} 30. Kh2 {[%emt 0:00:42]} Qe6 {[%emt 0:01:13]} 31. Rd4 {[%emt 0:02:28]} Qe5+ {[%emt 0:00:48]} 32. Kg1 {[%emt 0:01:37]} c5 {[%emt 0:01:14]} 33. bxc5 {[%emt 0:00:15]} Qxc5 {[%emt 0:00:04]} 34. Rxb7 {[%emt 0:01:32]} Qxa5 {[%emt 0:00:10]} 35. Rdd7 {[%emt 0:03:03]} Qe1+ {[%emt 0:01:00]} 36. Kh2 {[%emt 0:00:10]} Qxf2 {[%emt 0:00:07]} 37. Rxg7+ {[%emt 0:00:16]} Kh8 {[%emt 0:00:03]} 38. Rgf7 {[%emt 0:00:29]} 1-0

[Event "Czech Juniors Girls 2024"]
[Site "Jaromerice nad Rokytnou"]
[Date "2024.03.16"]
[Round "9.4"]
[White "Petirova, Iva"]
[Black "Nagyova, Daniela"]
[Result "1/2-1/2"]
[ECO "D36"]
[WhiteElo "1846"]
[BlackElo "1927"]
[Annotator "RC"]
[PlyCount "86"]
[EventDate "2024.03.10"]
[EventType "tourn"]
[EventCountry "CZE"]
[SourceTitle "playchess.com"]
[Source "ChessBase"]
[SourceQuality "1"]
[TimeControl "40/5400+30:1800+30"]

1. d4 {[%emt 0:00:05]} Nf6 {[%emt 0:00:23]} 2. c4 {[%emt 0:00:08]} e6 {[%emt 0:00:53]} 3. Nc3 {[%emt 0:00:15]} d5 {[%emt 0:01:37]} 4. cxd5 {[%emt 0:00:09]} exd5 {[%emt 0:00:22]} 5. Bg5 {[%emt 0:00:17]} Be7 {[%emt 0:01:43]} 6. e3 {[%emt 0:01:01]} h6 {[%emt 0:01:34]} 7. Bh4 {[%emt 0:00:08]} O-O {[%emt 0:02:15]} 8. Bd3 {[%emt 0:00:58]} Nbd7 {[%emt 0:03:41]} 9. Nge2 {[%emt 0:00:31]} c6 {[%emt 0:07:12]} 10. Qc2 {[%emt 0:01:03]} Re8 {[%emt 0:02:55]} 11. O-O {[%emt 0:00:28]} Ne4 {[%emt 0:03:10]} 12. Bxe7 {[%emt 0:00:23]} Qxe7 {[%emt 0:00:13]} 13. Bxe4 {[%emt 0:00:27]} dxe4 {[%emt 0:00:17]} 14. h3 {[%emt 0:02:24]} Nf6 {[%emt 0:05:46]} 15. f3 {[%emt 0:03:44]} exf3 {[%emt 0:15:59]} 16. Rxf3 {[%emt 0:00:08]} b6 {[%emt 0:05:39]} 17. Raf1 {[%emt 0:03:15]} Qe6 {[%emt 0:08:41]} 18. Nf4 {[%emt 0:06:36]} Qd6 {[%emt 0:01:55]} 19. Qf2 {[%emt 0:06:50]} Bb7 {[%emt 0:07:08]} 20. Rg3 {[%emt 0:04:29]} Ba6 {[%emt 0:15:18]} 21. Re1 {[%emt 0:10:06]} Rad8 {[%emt 0:01:23]} 22. Qf3 {[%emt 0:06:47]} Re7 {[%emt 0:04:54]} 23. Qd1 {[%emt 0:12:19]} Rde8 {[%emt 0:04:28]} 24. Rf3 {[%emt 0:00:45]} Bb7 {[%emt 0:03:02]} 25. Qd2 {[%emt 0:09:21]} b5 {[%emt 0:01:07]} 26. a3 {[%emt 0:04:45]} a5 {[%emt 0:00:36]} 27. Nce2 {[%emt 0:02:46]} b4 {[%emt 0:00:20]} 28. Ng3 {[%emt 0:01:20]} Ne4 {[%emt 0:01:11]} 29. Nxe4 {[%emt 0:02:39]} Rxe4 {[%emt 0:00:03]} 30. axb4 {[%emt 0:00:14]} axb4 {[%emt 0:00:42]} 31. Nd3 {[%emt 0:01:48]} R4e7 {[%emt 0:00:51]} 32. Nc5 {[%emt 0:01:17]} Bc8 {[%emt 0:00:39]} 33. Qxb4 {[%emt 0:03:12]} Be6 {[%emt 0:00:11]} 34. e4 {[%emt 0:02:59]} Bd5 {[%emt 0:00:35]} 35. Nd3 {[%emt 0:07:39]} Qxb4 {[%emt 0:00:12]} 36. Nxb4 {[%emt 0:00:04]} Rxe4 {[%emt 0:00:36]} 37. Rxe4 {[%emt 0:00:46]} Bxe4 {[%emt 0:00:54]} 38. Rc3 {[%emt 0:00:18]} Rb8 {[%emt 0:00:29]} 39. Nxc6 {[%emt 0:01:31]} Rxb2 {[%emt 0:00:09]} 40. g3 {[%emt 0:00:28]} Bxc6 {[%emt 0:00:24]} 41. Rxc6 {[%emt 0:30:05]} Kf8 {[%emt 0:02:09]} 42. Rc8+ {[%emt 0:00:00]} Ke7 {[%emt 0:00:04]} 43. Rc7+ {[%emt 0:00:00]} Ke8 {[%emt 0:05:34]} 1/2-1/2

[Event "Czech Juniors Girls 2024"]
[Site "Jaromerice nad Rokytnou"]
[Date "2024.03.16"]
[Round "9.5"]
[White "Voriskova, Anna"]
[Black "Fizerova, Lucie"]
[Result "1-0"]
[ECO "A06"]
[WhiteElo "1999"]
[BlackElo "1886"]
[Annotator "RC"]
[PlyCount "115"]
[EventDate "2024.03.10"]
[EventType "tourn"]
[EventCountry "CZE"]
[SourceTitle "playchess.com"]
[Source "ChessBase"]
[SourceQuality "1"]
[TimeControl "40/5400+30:1800+30"]

1. Nf3 {[%emt 0:00:04]} d5 {[%emt 0:01:32]} 2. e3 {[%emt 0:00:15]} e6 {[%emt 0:01:06]} 3. b3 {[%emt 0:00:38]} Nf6 {[%emt 0:01:24]} 4. Bb2 {[%emt 0:00:15]} Nbd7 {[%emt 0:02:00]} 5. c4 {[%emt 0:02:00]} c6 {[%emt 0:03:20]} 6. d4 {[%emt 0:05:20]} Bb4+ {[%emt 0:03:04]} 7. Nbd2 {[%emt 0:00:30]} O-O {[%emt 0:02:46]} 8. Bd3 {[%emt 0:05:44]} Ne4 {[%emt 0:03:05]} 9. a3 {[%emt 0:02:20]} Nxd2 {[%emt 0:03:12]} 10. Nxd2 {[%emt 0:01:19]} Be7 {[%emt 0:03:43]} 11. Qc2 {[%emt 0:01:12]} h6 {[%emt 0:07:46]} 12. O-O {[%emt 0:04:51]} Nf6 {[%emt 0:05:59]} 13. e4 {[%emt 0:02:22]} dxe4 {[%emt 0:02:51]} 14. Nxe4 {[%emt 0:00:25]} Nxe4 {[%emt 0:00:53]} 15. Bxe4 {[%emt 0:00:02]} Bf6 {[%emt 0:01:33]} 16. Rad1 {[%emt 0:01:19]} Qc7 {[%emt 0:03:20]} 17. Rfe1 {[%emt 0:00:20]} Rd8 {[%emt 0:02:02]} 18. Rd3 {[%emt 0:13:34]} b6 {[%emt 0:03:15]} 19. Red1 {[%emt 0:01:22]} Bb7 {[%emt 0:08:59]} 20. Qe2 {[%emt 0:04:08]} Qe7 {[%emt 0:05:11]} 21. h3 {[%emt 0:04:45]} Rac8 {[%emt 0:03:45]} 22. Rg3 {[%emt 0:10:14]} Bh4 {[%emt 0:02:50]} 23. Rgd3 {[%emt 0:01:15]} Bf6 {[%emt 0:01:27]} 24. g3 {[%emt 0:01:25]} Ba6 {[%emt 0:00:41]} 25. R3d2 {[%emt 0:05:57]} g6 {[%emt 0:06:57]} 26. Qf3 {[%emt 0:04:42]} Bg5 {[%emt 0:07:36]} 27. Rc2 {[%emt 0:02:32]} Bb7 {[%emt 0:00:32]} 28. h4 {[%emt 0:01:58]} Bf6 {[%emt 0:00:21]} 29. Rcd2 {[%emt 0:02:17]} Bg7 {[%emt 0:00:54]} 30. Qe2 {[%emt 0:03:25]} Rd7 {[%emt 0:01:47]} 31. Bg2 {[%emt 0:03:44]} Rcd8 {[%emt 0:01:38]} 32. Kh2 {[%emt 0:02:09]} Kh7 {[%emt 0:00:58]} 33. b4 {[%emt 0:02:26]} h5 {[%emt 0:04:03]} 34. Be4 {[%emt 0:04:02]} Kg8 {[%emt 0:01:20]} 35. Qf3 {[%emt 0:00:44]} Rc8 {[%emt 0:01:03]} 36. Bc1 {[%emt 0:00:57]} Qd8 {[%emt 0:01:02]} 37. b5 {[%emt 0:02:03]} Qc7 {[%emt 0:01:35]} 38. bxc6 {[%emt 0:02:10]} Bxc6 {[%emt 0:00:07]} 39. d5 {[%emt 0:03:59]} exd5 {[%emt 0:00:34]} 40. cxd5 {[%emt 0:00:29]} Ba4 {[%emt 0:01:23]} 41. d6 {[%emt 0:04:00]} Qb8 {[%emt 0:07:49]} 42. Re1 {[%emt 0:01:23]} Bc3 {[%emt 0:10:27]} 43. Bd5 {[%emt 0:04:28]} Bxd2 {[%emt 0:01:17]} 44. Bxd2 {[%emt 0:00:02]} Qxd6 {[%emt 0:01:06]} 45. Bc3 {[%emt 0:02:04]} Qxa3 {[%emt 0:07:51]} 46. Re3 {[%emt 0:01:50]} Qf8 {[%emt 0:01:38]} 47. Bf6 {[%emt 0:02:24]} Bb5 {[%emt 0:02:41]} 48. Re5 {[%emt 0:00:54]} Rxd5 {[%emt 0:02:02]} 49. Rxd5 {[%emt 0:00:01]} Rc5 {[%emt 0:01:39]} 50. Rd8 {[%emt 0:00:24]} Rf5 {[%emt 0:00:45]} 51. Rxf8+ {[%emt 0:01:38]} Kxf8 {[%emt 0:00:04]} 52. Qa8+ {[%emt 0:00:07]} Be8 {[%emt 0:00:03]} 53. Bd4 {[%emt 0:00:26]} Ra5 {[%emt 0:00:36]} 54. Qd8 {[%emt 0:00:34]} Ra2 {[%emt 0:00:27]} 55. Qd6+ {[%emt 0:00:10]} Kg8 {[%emt 0:00:20]} 56. Qf6 {[%emt 0:00:08]} Kf8 {[%emt 0:00:20]} 57. Be3 {[%emt 0:01:02]} Bb5 {[%emt 0:00:49]} 58. Qd8+ {[%emt 0:00:46]} 1-0